[Event "CZE-ch Open 2019"]
[Site "Ostrava"]
[Date "2019.05.01"]
[Round "5.33"]
[White "Havelka, Ondrej"]
[Black "Horak, Jan"]
[Result "1-0"]
[ECO "A14"]
[WhiteElo "2156"]
[BlackElo "2158"]
[Annotator "NA"]
[PlyCount "129"]
[EventDate "2019.04.27"]
[EventType "swiss"]
[EventCountry "CZE"]
[SourceTitle "playchess.com"]
[Source "ChessBase"]
[SourceQuality "1"]
[TimeControl "40/5400+30:1800+30"]

1. Nf3 {[%emt 0:00:00]} Nf6 {[%emt 0:00:00]} 2. c4 {[%emt 0:00:00]} e6 {[%emt 0:00:00]} 3. g3 {[%emt 0:00:11]} d5 {[%emt 0:00:18]} 4. Bg2 {[%emt 0:00:07]} Be7 {[%emt 0:00:29]} 5. O-O {[%emt 0:00:25]} O-O {[%emt 0:00:08]} 6. d4 {[%emt 0:03:47]} c6 {[%emt 0:00:25]} 7. Nc3 {[%emt 0:00:16]} b6 {[%emt 0:00:46]} 8. Ne5 {[%emt 0:01:58]} Bb7 {[%emt 0:00:41]} 9. e4 {[%emt 0:00:59]} Nbd7 {[%emt 0:07:01]} 10. cxd5 {[%emt 0:04:33]} cxd5 {[%emt 0:06:13]} 11. Nxd7 {[%emt 0:01:05]} Qxd7 {[%emt 0:01:13]} 12. e5 {[%emt 0:00:03]} Ne8 {[%emt 0:02:56]} 13. f4 {[%emt 0:02:38]} f5 {[%emt 0:08:14]} 14. exf6 {[%emt 0:01:09]} Nxf6 {[%emt 0:00:25]} 15. Re1 {[%emt 0:00:22]} Bb4 {[%emt 0:03:10]} 16. Bd2 {[%emt 0:02:48]} Bxc3 {[%emt 0:00:55]} 17. Bxc3 {[%emt 0:00:50]} Rac8 {[%emt 0:02:27]} 18. Re5 {[%emt 0:03:26]} Ne4 {[%emt 0:03:15]} 19. Bh3 {[%emt 0:04:31]} Rf6 {[%emt 0:03:13]} 20. Qg4 {[%emt 0:06:33]} Re8 {[%emt 0:06:44]} 21. Re1 {[%emt 0:00:45]} Rg6 {[%emt 0:06:32]} 22. Qd1 {[%emt 0:11:30]} Rf6 {[%emt 0:02:32]} 23. Rh5 {[%emt 0:16:28]} Bc6 {[%emt 0:10:19]} 24. Qg4 {[%emt 0:01:55]} Qf7 {[%emt 0:04:00]} 25. Bg2 {[%emt 0:15:29]} Nd6 {[%emt 0:06:37]} 26. Rhe5 {[%emt 0:00:16]} Ne4 {[%emt 0:04:50]} 27. Rh5 {[%emt 0:00:25]} Nd6 {[%emt 0:00:25]} 28. Bb4 {[%emt 0:01:24]} Nf5 {[%emt 0:01:24]} 29. Qh3 {[%emt 0:00:42]} g6 {[%emt 0:02:27]} 30. Rg5 {[%emt 0:01:22]} Bb5 {[%emt 0:03:16]} 31. Bc3 {[%emt 0:03:01]} Nd6 {[%emt 0:00:59]} 32. Rge5 {[%emt 0:00:37]} Nc4 {[%emt 0:00:37]} 33. R5e2 {[%emt 0:02:08]} Nd6 {[%emt 0:00:17]} 34. Re5 {[%emt 0:02:25]} a5 {[%emt 0:02:00]} 35. Bf3 {[%emt 0:02:30]} Bd3 {[%emt 0:01:40]} 36. R5e3 {[%emt 0:03:14]} Bf5 {[%emt 0:00:50]} 37. Qf1 {[%emt 0:00:10]} Nc4 {[%emt 0:00:16]} 38. Re5 {[%emt 0:01:48]} Qf8 {[%emt 0:06:31]} 39. Rxd5 {[%emt 0:00:30]} exd5 {[%emt 0:01:20]} 40. Bxd5+ {[%emt 0:00:43]} Be6 {[%emt 0:03:01]} 41. Bxc4 {[%emt 0:34:09]} Bf7 {[%emt 0:06:56]} 42. Rxe8 {[%emt 0:00:00]} Qxe8 {[%emt 0:00:14]} 43. d5 {[%emt 0:00:00]} Qe3+ {[%emt 0:01:21]} 44. Kg2 {[%emt 0:00:00]} Qe4+ {[%emt 0:00:18]} 45. Kh3 {[%emt 0:00:00]} Rf5 {[%emt 0:03:42]} 46. Be2 {[%emt 0:00:00]} Bxd5 {[%emt 0:00:35]} 47. Be5 {[%emt 0:00:00]} Be6 {[%emt 0:03:44]} 48. g4 {[%emt 0:00:00]} Qe3+ {[%emt 0:01:42]} 49. Bf3 {[%emt 0:00:00]} Rf7 {[%emt 0:00:28]} 50. Kh4 {[%emt 0:00:00]} g5+ {[%emt 0:05:07]} 51. Kxg5 {[%emt 0:00:00]} Qd2 {[%emt 0:00:12]} 52. Qd1 {[%emt 0:00:00]} Qxd1 {[%emt 0:09:11]} 53. Bxd1 {[%emt 0:00:00]} Bxa2 {[%emt 0:00:01]} 54. h4 {[%emt 0:00:00]} b5 {[%emt 0:01:33]} 55. h5 {[%emt 0:00:25]} a4 {[%emt 0:00:19]} 56. Kh6 {[%emt 0:00:50]} Bc4 {[%emt 0:01:12]} 57. g5 {[%emt 0:00:46]} Ra7 {[%emt 0:01:45]} 58. g6 {[%emt 0:00:16]} Ra6 {[%emt 0:00:36]} 59. f5 {[%emt 0:00:15]} hxg6 {[%emt 0:01:01]} 60. hxg6 {[%emt 0:01:11]} b4 {[%emt 0:01:00]} 61. f6 {[%emt 0:02:38]} a3 {[%emt 0:00:24]} 62. bxa3 {[%emt 0:00:16]} bxa3 {[%emt 0:00:05]} 63. Bc2 {[%emt 0:00:46]} a2 {[%emt 0:00:21]} 64. g7 {[%emt 0:00:18]} Ra8 {[%emt 0:00:42]} 65. Bg6 {[%emt 0:02:20]} 1-0